fUST/lending_fUST_20250724
["ID","MTS","AMOUNT","RATE_DAILY","PERIOD"]
[374511577,1753331463045,-813.78,0.00023013,2]
[374511578,1753331463055,-5915.49,0.00023013,2]
[374511579,1753331463065,-460.0,0.00023013,2]
[374511580,1753331463075,-668.73,0.00023013,2]
[374511581,1753331463084,-1224.11,0.00023013,2]
[374511582,1753331463096,-909.5,0.00023013,2]
[374511583,1753331463106,-1363.71,0.00023013,2]
[374511584,1753331463116,-741.54,0.00023013,2]
[374511585,1753331463125,-579.4,0.00023013,2]
[374511586,1753331463134,-1081.58,0.00023013,2]
[374511587,1753331463143,-156.0,0.00023014,7]
[374511588,1753331463152,-956.0,0.00023014,2]
[374511589,1753331463161,-500.0,0.00023014,2]
[374511590,1753331463171,-3000.0,0.0002302,2]
[374511591,1753331463180,-395.835009,0.0002302,7]
[374511592,1753331463190,-3000.0,0.0002303,2]
[374511593,1753331463200,-457.03,0.00023037,2]
[374511594,1753331463210,-3000.0,0.0002304,2]
[374511595,1753331463219,-1464.263723,0.0002304,7]
[374511596,1753331463229,-1464.263728,0.0002304,7]
[374511597,1753331463239,-3000.0,0.0002305,2]
[374511598,1753331463249,-3000.0,0.0002306,2]
[374511599,1753331463258,-151.0,0.0002306,7]
[374511600,1753331463267,-299.182357,0.0002306,7]
[374511601,1753331463275,-299.182364,0.0002306,7]
[374511602,1753331463285,-151.0,0.0002306,7]
[374511603,1753331463294,-457.03,0.00023065,2]
[374511604,1753331463303,-3000.0,0.0002307,2]
[374511605,1753331463313,-3000.0,0.0002308,2]
[374511606,1753331463324,-500.0,0.00023086,2]
[374511607,1753331463333,-3000.0,0.0002309,2]
[374511608,1753331463343,-457.03,0.00023093,2]
[374511609,1753331463353,-5000.0,0.00023097,30]
[374511610,1753331463363,-5000.0,0.00023097,30]
[374511611,1753331463373,-153.615284,0.00023099,3]
[374511612,1753331463382,-153.615284,0.00023099,3]
[374511613,1753331463392,-3000.0,0.000231,2]
[374511614,1753331463402,-359.457806,0.000231,7]
[374511615,1753331463412,-359.457806,0.000231,7]
[374511616,1753331463421,-250.513679,0.000231,7]
[374511617,1753331463430,-250.513679,0.000231,7]
[374511618,1753331463439,-3000.0,0.0002311,2]
[374511619,1753331463449,-151.0,0.0002311,7]
[374511620,1753331463459,-151.0,0.0002311,7]
[374511621,1753331463468,-151.0,0.0002311,7]
[374511622,1753331463478,-3000.0,0.0002312,2]
[374511623,1753331463487,-3000.0,0.0002313,2]
[374511624,1753331463497,-3907.2,0.0002313,6]
[374511625,1753331463507,-151.0,0.00023134,7]
[374511626,1753331463516,-151.0,0.00023134,7]
[374511627,1753331463526,-156.090994,0.0002314,7]
[374511628,1753331463536,-156.091004,0.0002314,7]
[374511629,1753331463545,-3000.0,0.0002314,2]
[374511630,1753331463555,-151.0,0.0002314,7]
[374511631,1753331463564,-151.0,0.0002314,7]
[374511632,1753331463574,-151.0,0.0002314,7]
[374511633,1753331463583,-3000.0,0.0002315,2]
[374511634,1753331463593,-3000.0,0.0002316,2]
[374511635,1753331463603,-1001.10075286,0.00023169,2]
[374511636,1753331463613,-3000.0,0.0002317,2]
[374511637,1753331463623,-152.827064,0.0002317,7]
[374511638,1753331463632,-152.827064,0.0002317,7]
[374511639,1753331463642,-151.0,0.0002317,7]
[374511640,1753331463651,-407.528929,0.0002317,7]
[374511641,1753331463660,-407.528929,0.0002317,7]
[374511642,1753331463670,-151.0,0.0002317,7]
[374511643,1753331463679,-151.0,0.0002317,7]
[374511644,1753331463689,-160.416395,0.0002317,7]
[374511645,1753331463699,-160.416395,0.0002317,7]
[374511646,1753331463709,-541.28418966,0.00023176,8]
[374511647,1753331463720,-3000.0,0.0002318,2]
[374511648,1753331463730,-3000.0,0.0002319,2]
[374511649,1753331463740,-500.0,0.00023196,2]
[374511650,1753331463750,-12737.63,0.000232,7]
[374511651,1753331463760,-3000.0,0.000232,2]
[374511652,1753331463770,-293.925083,0.000232,7]
[374511653,1753331463780,-151.0,0.000232,7]
[374511654,1753331463791,-151.0,0.000232,7]
[374511655,1753331463801,-151.0,0.000232,7]
[374511656,1753331463811,-291.44198,0.000232,7]
[374511657,1753331463821,-5000.0,0.00023204,30]
[374511658,1753331463831,-5000.0,0.00023204,30]
[374511659,1753331463842,-5000.0,0.00023204,30]
[374511660,1753331463852,-5000.0,0.00023204,30]
[374511661,1753331463861,-3000.0,0.0002321,2]
[374511662,1753331463871,-151.0,0.00023213,7]
[374511663,1753331463881,-152.963059,0.00023213,7]
[374511664,1753331463891,-152.963059,0.00023213,7]
[374511665,1753331463901,-301.281041,0.00023213,7]
[374511666,1753331463911,-301.281041,0.00023213,7]
[374511667,1753331463920,-151.0,0.00023213,7]
[374511668,1753331463930,-211.133947,0.00023213,7]
[374511669,1753331463939,-211.133947,0.00023213,7]
[374511670,1753331463950,-3000.0,0.0002322,2]
[374511671,1753331463962,-3000.0,0.0002323,2]
[374511672,1753331463972,-3000.0,0.0002324,2]
[374511673,1753331463981,-2604.63390665,0.0002325,2]
[374511674,1753331464001,-395.36609335,0.0002325,2]
[374511675,1753331464011,-236.89438,0.0002325,7]
[374511676,1753331464020,-236.89438,0.0002325,7]
[374511677,1753331464030,-3000.0,0.0002326,2]
[374511678,1753331464039,-3000.0,0.0002327,2]
[374511679,1753331464049,-151.0,0.0002327,7]
[374511680,1753331464059,-151.0,0.0002327,7]
[374511681,1753331464068,-172.226814,0.0002327,7]
[374511682,1753331464078,-172.226814,0.0002327,7]
[374511683,1753331464088,-239.84119403,0.00023273,2]
[374511684,1753331464097,-3000.0,0.0002328,2]
[374511685,1753331464107,-151.840791,0.0002328,7]
[374511686,1753331464116,-151.840791,0.0002328,7]
[374511687,1753331464125,-151.0,0.0002328,7]
[374511688,1753331464134,-151.0,0.0002328,7]
[374511689,1753331464143,-186.366261,0.0002328,7]
[374511690,1753331464152,-186.366254,0.0002328,7]
[374511691,1753331464162,-151.0,0.00023287,7]
[374511692,1753331464171,-151.0,0.00023287,7]
[374511693,1753331464180,-395.835009,0.00023287,7]
[374511694,1753331464190,-359.457806,0.00023287,7]
[374511695,1753331464199,-359.457806,0.00023287,7]
[374511696,1753331464208,-250.513679,0.00023287,7]
[374511697,1753331464217,-250.513679,0.00023287,7]
[374511698,1753331464227,-460.0,0.00023287,2]
[374511699,1753331464236,-484.22269791,0.00023287,2]
[374511700,1753331464245,-501.35,0.00023287,2]
[374511701,1753331464254,-460.0,0.00023287,2]
[374511702,1753331464263,-537.73,0.00023287,2]
[374511703,1753331464272,-2952.57,0.00023287,2]
[374511704,1753331464281,-546.2,0.00023287,2]
[374511705,1753331464291,-799.52,0.00023287,2]
[374511706,1753331464300,-494.42,0.00023287,2]
[374511707,1753331464310,-754.29,0.00023287,2]
[374511708,1753331464319,-584.13,0.00023287,2]
[374511709,1753331464329,-8334.09,0.00023287,2]
[374511710,1753331464338,-2700.94,0.00023287,2]
[374511711,1753331464349,-460.0,0.00023287,2]
[374511712,1753331464358,-861.52,0.00023287,2]
[374511713,1753331464450,-513.83,0.00023287,2]
[374511714,1753331464460,-907.31,0.00023287,2]
[374511715,1753331464470,-460.0,0.00023287,2]
[374511716,1753331464479,-1735.3,0.00023287,2]
[374511717,1753331464489,-460.0,0.00023287,2]
[374511718,1753331464499,-460.0,0.00023287,2]
[374511719,1753331464508,-1347.15,0.00023287,2]
[374511720,1753331464517,-532.27,0.00023287,2]
[374511721,1753331464526,-916.07,0.00023287,2]
[374511722,1753331464536,-547.98,0.00023287,2]
[374511723,1753331464545,-460.0,0.00023287,2]
[374511724,1753331464554,-463.23,0.00023287,2]
[374511725,1753331464564,-1480.78,0.00023287,2]
[374511726,1753331464573,-647.7,0.00023287,2]
[374511727,1753331464582,-496.28,0.00023287,2]
[374511728,1753331464591,-1571.26,0.00023287,2]
[374511729,1753331464600,-2093.24,0.00023287,2]
[374511730,1753331464610,-541.99,0.00023287,2]
[374511731,1753331464620,-685.81,0.00023287,2]
[374511732,1753331464629,-813.78,0.00023287,2]
[374511733,1753331464639,-5915.49,0.00023287,2]
[374511734,1753331464649,-460.0,0.00023287,2]
[374511735,1753331464659,-668.73,0.00023287,2]
[374511736,1753331464668,-1224.11,0.00023287,2]
[374511737,1753331464678,-909.5,0.00023287,2]
[374511738,1753331464687,-1363.71,0.00023287,2]
[374511739,1753331464697,-741.54,0.00023287,2]
[374511740,1753331464707,-579.4,0.00023287,2]
[374511741,1753331464717,-1081.58,0.00023287,2]
[374511742,1753331464727,-151.0,0.00023288,7]
[374511743,1753331464737,-956.0,0.00023288,2]
[374511744,1753331464747,-500.0,0.00023288,2]
[374511745,1753331464757,-3000.0,0.0002329,2]
[374511746,1753331464766,-3000.0,0.000233,2]
[374511747,1753331464776,-151.0,0.000233,7]
[374511748,1753331464785,-151.0,0.000233,7]
[374511749,1753331464795,-151.0,0.000233,7]
[374511750,1753331464805,-3000.0,0.0002331,2]
[374511751,1753331464814,-3000.0,0.0002332,2]
[374511752,1753331464824,-151.0,0.00023321,7]
[374511753,1753331464833,-407.528929,0.00023321,7]
[374511754,1753331464844,-407.528929,0.00023321,7]
[374511755,1753331464854,-151.0,0.00023321,7]
[374511756,1753331464864,-151.0,0.00023321,7]
[374511757,1753331464874,-160.416395,0.00023321,7]
[374511758,1753331464884,-160.416395,0.00023321,7]
[374511759,1753331464894,-3000.0,0.0002333,2]
[374511760,1753331464904,-151.0,0.0002333,7]
[374511761,1753331464914,-151.0,0.0002333,7]
[374511762,1753331464923,-151.0,0.0002333,7]
[374511763,1753331464933,-3278.698233,0.0002334,2]
[374511764,1753331464943,-541.28418966,0.00023348,9]
[374511765,1753331464955,-151.0,0.00023414,7]
[374511766,1753331464964,-151.0,0.00023414,7]
[374511767,1753331464973,-151.0,0.00023438,7]
[374511768,1753331464982,-151.840791,0.00023438,7]
[374511769,1753331464993,-151.840791,0.00023438,7]
[374511770,1753331465003,-236.89438,0.00023438,7]
[374511771,1753331465012,-236.89438,0.00023438,7]
[374511772,1753331465023,-152.827064,0.00023438,7]
[374511773,1753331465033,-152.827064,0.00023438,7]
[374511774,1753331465042,-151.0,0.00023438,7]
[374511775,1753331465052,-152.963059,0.00023438,7]
[374511776,1753331465062,-152.963059,0.00023438,7]
[374511777,1753331465072,-301.281041,0.00023438,7]
[374511778,1753331465082,-301.281041,0.00023438,7]
[374511779,1753331465093,-151.0,0.00023438,7]
[374511780,1753331465102,-211.133947,0.00023438,7]
[374511781,1753331465112,-211.133947,0.00023438,7]
[374511782,1753331465121,-2200.0,0.00023467,2]
[374511783,1753331465131,-3907.2,0.00023484,6]
[374511784,1753331465140,-172.226814,0.00023485,7]
[374511785,1753331465149,-172.226814,0.00023485,7]
[374511786,1753331465159,-153.615284,0.00023498,3]
[374511787,1753331465168,-153.615284,0.00023498,3]
[374511788,1753331465177,-151.0,0.000235,7]
[374511789,1753331465186,-151.0,0.000235,7]
[374511790,1753331465195,-541.28418966,0.00023521,9]
[374511791,1753331465205,-1001.10075286,0.00023528,2]
[374511792,1753331465214,-151.0,0.00023561,7]
[374511793,1753331465223,-151.0,0.00023561,7]
[374511794,1753331465232,-395.835009,0.00023561,7]
[374511795,1753331465241,-460.0,0.00023561,2]
[374511796,1753331465251,-501.35,0.00023561,2]
[374511797,1753331465260,-460.0,0.00023561,2]
[374511798,1753331465269,-537.73,0.00023561,2]
[374511799,1753331465279,-2952.57,0.00023561,2]
[374511800,1753331465288,-546.2,0.00023561,2]
[374511801,1753331465297,-799.52,0.00023561,2]
[374511802,1753331465307,-2368.33,0.00023561,2]
[374511803,1753331465316,-494.42,0.00023561,2]
[374511804,1753331465326,-754.29,0.00023561,2]
[374511805,1753331465335,-584.13,0.00023561,2]
[374511806,1753331465345,-8334.09,0.00023561,2]
[374511807,1753331465355,-2700.94,0.00023561,2]
[374511808,1753331465364,-460.0,0.00023561,2]
[374511809,1753331465373,-861.52,0.00023561,2]
[374511810,1753331465383,-513.83,0.00023561,2]
[374511811,1753331465392,-907.31,0.00023561,2]
[374511812,1753331465401,-460.0,0.00023561,2]
[374511813,1753331465410,-1735.3,0.00023561,2]
[374511814,1753331465419,-460.0,0.00023561,2]
[374511815,1753331465429,-460.0,0.00023561,2]
[374511816,1753331465438,-1347.15,0.00023561,2]
[374511817,1753331465447,-532.27,0.00023561,2]
[374511818,1753331465456,-916.07,0.00023561,2]
[374511819,1753331465464,-547.98,0.00023561,2]
[374511820,1753331465474,-460.0,0.00023561,2]
[374511821,1753331465483,-463.23,0.00023561,2]
[374511822,1753331465492,-1480.78,0.00023561,2]
[374511823,1753331465501,-647.7,0.00023561,2]
[374511824,1753331465511,-496.28,0.00023561,2]
[374511825,1753331465520,-1571.26,0.00023561,2]
[374511826,1753331465530,-541.99,0.00023561,2]
[374511827,1753331465540,-2093.24,0.00023561,2]
[374511828,1753331465549,-685.81,0.00023561,2]
[374511829,1753331465558,-813.78,0.00023561,2]
[374511830,1753331465568,-460.0,0.00023561,2]
[374511831,1753331465577,-5915.49,0.00023561,2]
[374511832,1753331465586,-668.73,0.00023561,2]
[374511833,1753331465596,-1224.11,0.00023561,2]
[374511834,1753331465605,-909.5,0.00023561,2]
[374511835,1753331465615,-1363.71,0.00023561,2]
[374511836,1753331465625,-741.54,0.00023561,2]
[374511837,1753331465634,-579.4,0.00023561,2]
[374511838,1753331465643,-1081.58,0.00023561,2]
[374511839,1753331465652,-956.0,0.00023562,2]
[374511840,1753331465662,-500.0,0.00023562,2]
[374511841,1753331465671,-6282.55,0.0002359,10]
[374511842,1753331465680,-541.28418966,0.00023693,9]
[374511843,1753331465690,-359.457806,0.00023699,7]
[374511844,1753331465698,-359.457806,0.00023699,7]
[374511845,1753331465708,-250.513679,0.00023699,7]
[374511846,1753331465717,-250.513679,0.00023699,7]
[374511847,1753331465726,-151.0,0.00023835,7]
[374511848,1753331465735,-151.0,0.00023835,7]
[374511849,1753331465745,-151.0,0.00023835,7]
[374511850,1753331465754,-152.827064,0.00023835,7]
[374511851,1753331465764,-152.827064,0.00023835,7]
[374511852,1753331465773,-151.0,0.00023835,7]
[374511853,1753331465782,-407.528929,0.00023835,7]
[374511854,1753331465791,-407.528929,0.00023835,7]
[374511855,1753331465800,-151.0,0.00023835,7]
[374511856,1753331465809,-151.0,0.00023835,7]
[374511857,1753331465819,-160.416395,0.00023835,7]
[374511858,1753331465828,-160.416395,0.00023835,7]
[374511859,1753331465837,-151.0,0.00023835,7]
[374511860,1753331465847,-151.0,0.00023835,7]
[374511861,1753331465856,-151.0,0.00023835,7]
[374511862,1753331465866,-460.0,0.00023835,2]
[374511863,1753331465875,-501.35,0.00023835,2]
[374511864,1753331465884,-460.0,0.00023835,2]
[374511865,1753331465894,-537.73,0.00023835,2]
[374511866,1753331465903,-2952.57,0.00023835,2]
[374511867,1753331465912,-546.2,0.00023835,2]
[374511868,1753331465921,-799.52,0.00023835,2]
[374511869,1753331465931,-2368.33,0.00023835,2]
[374511870,1753331465941,-494.42,0.00023835,2]
[374511871,1753331465951,-754.29,0.00023835,2]
[374511872,1753331466032,-584.13,0.00023835,2]
[374511873,1753331466049,-8334.09,0.00023835,2]
[374511874,1753331466059,-2700.94,0.00023835,2]
[374511875,1753331466069,-460.0,0.00023835,2]
[374511876,1753331466078,-861.52,0.00023835,2]
[374511877,1753331466088,-513.83,0.00023835,2]
[374511878,1753331466097,-907.31,0.00023835,2]
[374511879,1753331466107,-460.0,0.00023835,2]
[374511880,1753331466116,-1735.3,0.00023835,2]
[374511881,1753331466126,-460.0,0.00023835,2]
[374511882,1753331466135,-460.0,0.00023835,2]
[374511883,1753331466144,-1347.15,0.00023835,2]
[374511884,1753331466154,-532.27,0.00023835,2]
[374511885,1753331466164,-916.07,0.00023835,2]
[374511886,1753331466173,-460.0,0.00023835,2]
[374511887,1753331466182,-547.98,0.00023835,2]
[374511888,1753331466191,-463.23,0.00023835,2]
[374511889,1753331466201,-1480.78,0.00023835,2]
[374511890,1753331466210,-647.7,0.00023835,2]
[374511891,1753331466219,-496.28,0.00023835,2]
[374511892,1753331466229,-1571.26,0.00023835,2]
[374511893,1753331466238,-541.99,0.00023835,2]
[374511894,1753331466248,-2093.24,0.00023835,2]
[374511895,1753331466257,-685.81,0.00023835,2]
[374511896,1753331466267,-813.78,0.00023835,2]
[374511897,1753331466276,-242.05292504,0.00023835,2]
[374511898,1753331466287,-5915.49,0.00023835,2]
[374511899,1753331466296,-668.73,0.00023835,2]
[374511900,1753331466306,-1224.11,0.00023835,2]
[374511901,1753331466317,-909.5,0.00023835,2]
[374511902,1753331466326,-1363.71,0.00023835,2]
[374511903,1753331466336,-741.54,0.00023835,2]
[374511904,1753331466346,-579.4,0.00023835,2]
[374511905,1753331466355,-1081.58,0.00023835,2]
[374511906,1753331466364,-956.0,0.00023836,2]
[374511907,1753331466374,-500.0,0.00023836,2]
[374511908,1753331466384,-151.0,0.00023838,7]
[374511909,1753331466393,-211.133947,0.00023838,7]
[374511910,1753331466403,-211.133954,0.00023838,7]
[374511911,1753331466413,-3907.2,0.00023838,6]
[374511912,1753331466422,-150.0,0.00023856,2]
[374511913,1753331466432,-541.28418966,0.00023866,10]
[374511914,1753331466442,-1001.10075286,0.00023888,2]
[374511915,1753331466451,-153.615284,0.00023898,3]
[374511916,1753331466461,-153.615284,0.00023898,3]
[374511917,1753331466470,-20877.95,0.000239,2]
[374511918,1753331466480,-2756.16,0.000239,7]
[374511919,1753331466490,-151.0,0.000239,7]
[374511920,1753331466499,-151.840791,0.000239,7]
[374511921,1753331466509,-151.840791,0.000239,7]
[374511922,1753331466518,-236.89438,0.000239,7]
[374511923,1753331466527,-236.89438,0.000239,7]
[374511924,1753331466537,-227.050702,0.000239,7]
[374511925,1753331466546,-151.0,0.000239,7]
[374511926,1753331466555,-152.963059,0.000239,7]
[374511927,1753331466564,-152.963059,0.000239,7]
[374511928,1753331466574,-301.281041,0.000239,7]
[374511929,1753331466583,-301.281041,0.000239,7]
[374511930,1753331466593,-151.0,0.000239,7]
[374511931,1753331466604,-307.5229081,0.00023918,2]
[374511932,1753331466613,-153.615284,0.00023942,10]
[374511933,1753331466623,-153.615284,0.00023949,2]
[374511934,1753331466632,-153.615284,0.00023949,2]
[374511935,1753331466641,-500.0,0.00023973,2]
[374511936,1753331466650,-36106.38545118,0.0002399,5]
[374511937,1753331466770,-83113.43374429,0.0002399,5]
[374511939,1753331663204,5000.0,0.00018,2]
[374511940,1753331679903,5000.0,0.00018,2]
[374511941,1753331695546,5000.0,0.00018,2]
[374511942,1753331712007,5000.0,0.00018,2]
[374511943,1753331727504,5000.0,0.00018,2]
[374511945,1753331744076,5000.0,0.00018,2]
[374511946,1753331750419,277.485061,0.00017927,2]
[374511947,1753331762241,5000.0,0.00018,2]
[374511948,1753331778911,2277.09812423,0.00018,2]
[374511949,1753331890686,286.544596,0.0001777,2]
[374511950,1753332131628,899.28,0.00026027,120]
[374511952,1753332151406,218.130727,0.00013699,2]
[374511953,1753332280676,1046.0952,0.00017751,2]
[374511954,1753332335105,-519.16837242,0.00018244,2]
[374511955,1753332335124,-165.418882,0.00018306,2]
[374511956,1753332335144,-165.418882,0.00018307,2]
[374511957,1753332335163,-165.41888156,0.00018307,2]
[374511958,1753332335182,-657.3894744,0.0001832,2]
[374511959,1753332335202,-160.98956494,0.00018344,2]
[374511960,1753332335221,-24.57784011,0.00018386,2]
[374511963,1753332425107,-410.41912993,0.00018808,2]
[374511964,1753332425131,-410.41912991,0.00018809,2]
[374511965,1753332425153,-69.72219393,0.0001881,2]
[374511966,1753332434104,-340.69693598,0.0001881,2]
[374511967,1753332434125,-410.41912991,0.00018811,2]
[374511968,1753332434147,-517.66574038,0.00018812,2]
[374511969,1753332434167,-8.41544993,0.00018812,2]
[374511970,1753332444096,-402.00367998,0.00018812,2]
[374511971,1753332444120,-546.81164809,0.000189,2]
[374512528,1753332638692,-452.95752285,0.00018812,2]
[374512530,1753332638702,-181.69220922,0.000189,2]
[374512532,1753332638713,-327.68320545,0.000189,2]
[374512534,1753332638723,-316.15688543,0.00018908,2]
[374512554,1753332638900,-183.84311457,0.00018908,2]
[374512556,1753332638911,-500.0,0.00018908,2]
[374512558,1753332638921,-214.63688543,0.00018908,2]
[374512560,1753332638934,-416.88371049,0.00018908,2]
[374512561,1753332638944,-425.26068464,0.00018908,2]
[374512563,1753332638954,-500.0,0.00018908,2]
[374512564,1753332638963,-225.28557315,0.00018908,2]
[374512565,1753332638972,-500.0,0.00018908,2]
[374512567,1753332638982,-500.0,0.00018908,2]
[374512568,1753332638991,-375.94721863,0.00018908,2]
[374512569,1753332639001,-500.0,0.00018908,2]
[374512570,1753332639011,-181.966898,0.00018908,2]
[374512571,1753332639020,-500.0,0.00018908,2]
[374512572,1753332639030,-500.0,0.00018908,2]
[374512575,1753332639041,-500.0,0.00018908,2]
[374512576,1753332639050,-500.0,0.00018908,2]
[374512578,1753332639060,-500.0,0.00018908,2]
[374512579,1753332639074,-500.0,0.00018908,2]
[374512580,1753332639084,-500.0,0.00018908,2]
[374512581,1753332639093,-466.83444254,0.00018908,2]
[374512582,1753332639102,-651.16160092,0.00018908,2]
[374512583,1753332639111,-500.0,0.00018908,2]
[374512584,1753332639120,-500.31607745,0.00018908,2]
[374512586,1753332639130,-500.0,0.00018908,2]
[374512588,1753332639140,-178.03388922,0.00018908,2]
[374512590,1753332639150,-1200.0,0.00018908,2]
[374512592,1753332639159,-300.0,0.00018908,2]
[374512594,1753332639169,-300.0,0.00018908,2]
[374512595,1753332639178,-300.0,0.00018908,2]
[374512597,1753332639187,-830.44337622,0.00018909,2]
[374512600,1753332639200,-460.0,0.00018909,2]
[374512602,1753332639211,-1872.46916917,0.00018909,2]
[374512611,1753332639292,-46837.08745461,0.00018909,2]
[374512612,1753332639302,-1200.0,0.00018909,2]
[374512614,1753332639312,-10728.80051159,0.00018912,2]
[374512616,1753332639325,-215.0738,0.00018967,2]
[374512618,1753332639335,-213.1,0.00018968,3]
[374512620,1753332639344,-639.32,0.00018968,3]
[374512621,1753332639356,-502.36127465,0.00018973,2]
[374512622,1753332639365,-76229.74416174,0.00018978,2]
[374512623,1753332639374,-154.70002979,0.00019078,2]
[374512624,1753332639383,-946.43325394,0.00019078,2]
[374512625,1753332639392,-327.68320537,0.00019107,2]
[374512626,1753332639402,-150.0,0.00019116,2]
[374512627,1753332639412,-151.0,0.00019166,2]
[374512628,1753332639422,-151.0,0.00019166,2]
[374512629,1753332639431,-255.72,0.00019168,3]
[374512630,1753332639441,-500.0,0.00019173,2]
[374512631,1753332639450,-500.0,0.00019173,2]
[374512632,1753332639459,-211.04569407,0.00019173,2]
[374512634,1753332639468,-500.0,0.00019173,2]
[374512636,1753332639477,-508.32899048,0.00019173,2]
[374512637,1753332639487,-641.6904702,0.00019177,2]
[374512639,1753332639497,-359.54865265,0.00019178,2]
[374512640,1753332639506,-460.0,0.00019178,2]
[374512641,1753332639517,-463.48573571,0.00019178,2]
[374512642,1753332639527,-225.262,0.00019178,2]
[374512643,1753332639536,-465.2611379,0.00019178,2]
[374512644,1753332639545,-460.0,0.00019178,2]
[374512645,1753332639555,-460.0,0.00019178,2]
[374512646,1753332639564,-257.98413322,0.00019178,2]
[374512647,1753332639578,-410.96854598,0.00019178,2]
[374512648,1753332639587,-328.93406664,0.00019178,2]
[374512649,1753332639596,-460.0,0.00019178,2]
[374512650,1753332639605,-460.0,0.00019178,2]
[374512651,1753332639614,-460.0,0.00019178,2]
[374512652,1753332639623,-490.43335583,0.00019178,2]
[374512653,1753332639632,-462.67174557,0.00019178,2]
[374512654,1753332639641,-460.0,0.00019178,2]
[374512655,1753332639651,-460.0,0.00019178,2]
[374512656,1753332639660,-460.0,0.00019178,2]
[374512657,1753332639669,-468.35448005,0.00019178,2]
[374512658,1753332639679,-460.0,0.00019178,2]
[374512659,1753332639688,-462.25309012,0.00019178,2]
[374512660,1753332639697,-460.0,0.00019178,2]
[374512661,1753332639706,-460.0,0.00019178,2]
[374512662,1753332639716,-460.0,0.00019178,2]
[374512663,1753332639725,-460.0,0.00019178,2]
[374512665,1753332639735,-460.0,0.00019178,2]
[374512666,1753332639744,-460.0,0.00019178,2]
[374512667,1753332639753,-460.0,0.00019178,2]
[374512668,1753332639762,-460.0,0.00019178,2]
[374512670,1753332639772,-460.0,0.00019178,2]
[374512671,1753332639781,-460.0,0.00019178,2]
[374512672,1753332639791,-460.0,0.00019178,2]
[374512673,1753332639800,-402.94722439,0.00019178,2]
[374512674,1753332639815,-65.50922494,0.00019178,2]
[374512675,1753332639827,-460.0,0.00019178,2]
[374512676,1753332639836,-460.0,0.00019178,2]
[374512677,1753332639845,-460.0,0.00019178,2]
[374512678,1753332639854,-457.49275919,0.00019178,2]
[374512680,1753332639867,-5.44898787,0.00019178,2]
[374512682,1753332639878,-468.45039135,0.00019178,2]
[374512684,1753332639888,-460.0,0.00019178,2]
[374512686,1753332639898,-460.0,0.00019178,2]
[374512688,1753332639907,-460.0,0.00019178,2]
[374512690,1753332639916,-461.38793345,0.00019178,2]
[374512692,1753332639926,-460.0,0.00019178,2]
[374512694,1753332639936,-460.0,0.00019178,2]
[374512696,1753332639946,-460.0,0.00019178,2]
[374512698,1753332639955,-196.54814748,0.00019178,2]
[374512700,1753332639965,-340.80816369,0.00019178,2]
[374512702,1753332639976,-460.0,0.00019178,2]
[374512704,1753332639985,-460.0,0.00019178,2]
[374512706,1753332639994,-460.0,0.00019178,2]
[374512708,1753332640004,-460.0,0.00019178,2]